Cogmind - Beta 13 @@@ ROGUE MODE // 2024.07.15 @ 15:43:12 Player: jimmyl Result: Destroyed by S-10 Pest with Light Assault Rifle Performance ------------- Evolutions (0) 0 Regions Visited (1) 200 Robots Destroyed (16) 80 Value Destroyed (362) 362 Prototype IDs (0) 0 Alien Tech Used (0) 0 Bonus (0) 0 TOTAL SCORE: 642 Bonus ------- None Cogmind --------- Core Integrity 0/250 Matter 280/300 Energy 248/250 System Corruption 3% Temperature Cool (0) Movement Rolling (105) Ox1 Location -10/Materials Parts ------- > --- POWER (1) -------- Ion Engine > --- PROPULSION (2) --- Wheel Compact Wheel > --- UTILITY (2) ------ High-capacity Storage Unit > --- WEAPON (2) ------- Small Laser Small Laser > --- INVENTORY (20) --- Light Ion Engine Light Treads Light Treads Improved Heat Sink Signal Interpreter ECM Suite Weapon Shielding Hacking Suite EM Pulse Gun EM Pulse Gun Assault Rifle Assault Rifle Datajack Peak State ------------ > --- POWER ------------ Ion Engine > --- PROPULSION ------- Wheel Compact Wheel > --- UTILITY ---------- Improved Heat Sink High-capacity Storage Unit > --- WEAPON ----------- Small Laser Small Laser > --- INVENTORY -------- Light Ion Engine Light Treads Light Treads Wheel Signal Interpreter ECM Suite EM Pulse Gun Small Laser Light Assault Rifle Datajack [Rating: 10] Favorites ----------- Power Ion Engine Engine Ion Engine Propulsion Wheel Leg Aluminum Leg Wheel Wheel Utility High-capacity Storage Unit Device Improved Heat Sink Storage High-capacity Storage Unit Weapon Small Laser Energy Gun Small Laser Ballistic Gun Assault Rifle Build | -11 -10 ------- Run | Yrd Mat Slots Evolved . | . . Power . | . . Propulsion . | . . Utility . | . . Weapon . | . . Parts Attached 12 | . 12 Power 1 | . 1 Engine 1 | . 1 Core . | . . Reactor . | . . Propulsion 7 | . 7 Treads . | . . Leg . | . . Wheel 7 | . 7 Hover . | . . Flight . | . . Utility 2 | . 2 Device 1 | . 1 Storage 1 | . 1 Processor . | . . Hackware . | . . Protection . | . . Artifact . | . . Weapon 2 | . 2 Energy Gun 2 | . 2 Energy Cannon . | . . Ballistic Gun . | . . Ballistic Cannon . | . . Launcher . | . . Special Weapon . | . . Impact Weapon . | . . Slashing Weapon . | . . Piercing Weapon . | . . Special Melee Weapon . | . . Unidentified Prototypes . | . . Parts Lost 6 | . 6 Power 1 | . 1 Propulsion 3 | . 3 Utility 1 | . 1 Weapon 1 | . 1 Highest Loss Streak 3 | . 3 To Critical Strikes . | . . Average Slot Usage (%) 94 | . 94 Engine 12 | . 12 Wheel 26 | . 26 Device 10 | . 10 Storage 14 | . 14 Energy Gun 24 | . 24 Ballistic Gun 3 | . 3 Naked Turns . | . . Heaviest Build 48 | 11 48 Greatest Support 32 | 20 32 Greatest Overweight (x) 4 | . 4 Average Overweight (x) 1 | . 1 Largest Inventory Capacity 20 | 8 20 Average Capacity 19 | 8 19 Most Carried 16 | 6 16 Average Carried 10 | 6 10 Final Capacity 20 | 8 20 Final Carried 13 | 6 13 Class Distribution -------------------- 100% | Mutant Dominant Class ---------------- Mutant | -10/Materials Resources | -11 -10 ----------- Run | Yrd Mat Matter Collected 375 | 200 175 Remotely . | . . Salvage Created 500 | . 500 Parts 32 | . 32 Haulers Intercepted 2 | . 2 Recyclers Shooed 1 | . 1 Parts Field Recycled . | . . Retrieved Matter . | . . Parts Self-Destructed . | . . Prevented . | . . Kills | -11 -10 ------- Run | Yrd Mat Combat Hostiles Destroyed 10 | . 10 Guns 10 | . 10 Classes Destroyed 5 | . 5 Hauler 2 | . 2 Operator 2 | . 2 Watcher 2 | . 2 Swarmer 3 | . 3 Grunt 7 | . 7 Best Kill Streak 3 | . 3 Combat Bots Only 3 | . 3 Max Kills in Single Turn 1 | . 1 Gunslinging . | . . Exploded . | . . Melee . | . . Uniques/NPCs Destroyed . | . . Combat | -11 -10 -------- Run | Yrd Mat Hostile Shots Fired 97 | . 97 Missed 28 | . 28 Damage Taken 911 | . 911 Core 255 | . 255 Absorbed by Shields . | . . Core Remaining (%) 100 | 100 . Volleys Fired 67 | . 67 Largest 2 | . 2 Hottest 80 | . 80 Shots Fired 133 | . 133 Gun 133 | . 133 Cannon . | . . Launcher . | . . Special . | . . Kinetic 30 | . 30 Thermal 103 | . 103 Explosive . | . . Electromagnetic . | . . Robot Hit Streak 9 | . 9 Robot Miss Streak 4 | . 4 Penetration Max . | . . Secondary Targets 1 | . 1 Max Gunslinging Chain 1 | . 1 Shots Hit Robots 83 | . 83 Core Hits 32 | . 32 Critical Kills . | . . Critical Parts Destroyed . | . . Critical Strikes . | . . Melee Attacks . | . . Impact . | . . Slashing . | . . Piercing . | . . Sneak Attacks . | . . Combat Hostiles . | . . Follow-up Attacks . | . . Damage Inflicted 970 | . 970 Guns 959 | . 959 Cannons . | . . Explosions . | . . Melee . | . . Ramming 11 | . 11 Kinetic 256 | . 256 Thermal 703 | . 703 Explosive . | . . Electromagnetic . | . . Impact . | . . Slashing . | . . Piercing . | . . Highest Corruption 3 | . 3 Average Corruption 1 | . 1 Corruption Purged . | . . Corruption Blocked . | . . Effects 4 | . 4 Heat Flow Errors 1 | . 1 Misfires 2 | . 2 Weapon Failures 1 | . 1 Overload Shots . | . . Overflow Damage . | . . Projectiles . | . . Explosions . | . . Melee . | . . Knockbacks . | . . Impact . | . . Kinetic . | . . Secondary . | . . Self-Inflicted Damage 5 | . 5 Shots . | . . Rammed 1 | . 1 Targets Rammed 1 | . 1 Kicked . | . . Crushed . | . . Highest Temperature 96 | . 96 Average Temperature 48 | . 48 Received Heat Transfer 366 | . 366 Siege Activations . | . . Robots Corrupted . | . . Combat Hostiles . | . . Parts Fried . | . . Impact Corruptions . | . . Robots Melted . | . . Combat Hostiles . | . . Parts Melted 1 | . 1 Heat Transferred 1600 | . 1600 Parts Sabotaged . | . . Parts Stolen . | . . Parts Stripped . | . . Power Chain Reactions . | . . Alert | -11 -10 ------- Run | Yrd Mat Peak Influence 292 | . 292 Initial . | . . Average 105 | . 106 Maximum Alert Level 1 | . 1 Low Security (%) 81 | 100 81 Level 1 18 | . 18 Level 2 . | . . Level 3 . | . . Level 4 . | . . Level 5 . | . . High Security . | . . Max Security . | . . Squads Dispatched 2 | . 2 Investigation . | . . Extermination . | . . Reinforcement 2 | . 2 Assault . | . . Garrison . | . . Intercept . | . . Searches Triggered . | . . Construction Impeded . | . . Haulers Reinforced . | . . Active Scanning Responses . | . . Cargo Convoy Interrupts . | . . Stealth | -11 -10 --------- Run | Yrd Mat Distress Signals 1 | . 1 Communications Jammed . | . . Distress Signals . | . . Times Spotted 27 | . 27 Peak Tracking Total 5 | . 5 Tactical Retreats 4 | . 4 Traps | -11 -10 ------- Run | Yrd Mat Traps Triggered 3 | . 3 Indirectly . | . . Trap Hack Attempts . | . . Triggered . | . . Disarmed . | . . Reprogrammed . | . . Reused . | . . Traps Extracted . | . . Installed . | . . Triggered . | . . Machines | -11 -10 ---------- Run | Yrd Mat Machines Disabled . | . . Max in Single Turn . | . . Machines Repaired . | . . Machines Dismantled . | . . Machines Sabotaged . | . . Overloaded Fab Kills . | . . Hacking | -11 -10 --------- Run | Yrd Mat Machines Accessed 1 | . 1 Terminals 1 | . 1 Fabricators . | . . Repair Stations . | . . Recycling Units . | . . Scanalyzers . | . . Garrison Access . | . . Total Hacks 1 | . 1 Successful . | . . Failed 1 | . 1 Catastrophic 1 | . 1 Database Lockouts . | . . Manual 1 | . 1 Terminals 1 | . 1 Fabricators . | . . Repair Stations . | . . Recycling Units . | . . Scanalyzers . | . . Garrison Access . | . . Terminal Hacks . | . . Fabricator Hacks . | . . Repair Station Hacks . | . . Recycling Unit Hacks . | . . Scanalyzer . | . . Garrison Access Hacks . | . . Unauthorized Hacks . | . . Terminals . | . . Fabricators . | . . Repair Stations . | . . Recycling Units . | . . Scanalyzers . | . . Garrison Access . | . . Data Cores Recovered . | . . Used . | . . Hacking Detections 1 | . 1 Full Trace Events . | . . Feedback Events . | . . Feedback Blocked . | . . Robot Schematics Acquired . | . . Robots Built . | . . Authchips . | . . Time . | . . Total Robot Build Rating . | . . Part Schematics Acquired . | . . Parts Built . | . . Authchips . | . . Time . | . . Total Part Build Rating . | . . Parts Repaired . | . . Time . | . . Parts Recycled . | . . Recycled Matter . | . . Retrieved Matter . | . . Retrieved Components . | . . Parts Scanalyzed . | . . Part Schematics Acquired . | . . Parts Damaged . | . . Bothacking | -11 -10 ------------ Run | Yrd Mat Used RIF Installer . | . . Robots Hacked . | . . Non-combat . | . . Combat . | . . Robot Hacks Applied . | . . Relay Couplers Released . | . . Fabnet Peak Effective % . | . . Robots Rewired . | . . Allies Hacked . | . . Hacks Repelled . | . . Allies | -11 -10 -------- Run | Yrd Mat Total Allies . | . . Largest Group . | . . Highest-Rated Group . | . . Highest-Rated Ally . | . . Total Orders . | . . Ally Attacks . | . . Total Damage . | . . Kills . | . . Allies Corrupted . | . . Allies Melted . | . . Intel | -11 -10 ------- Run | Yrd Mat Robot Analysis Total . | . . Derelict Logs Recovered . | . . Drone Launches . | . . Drone Recoveries . | . . Exploration | -11 -10 ------------- Run | Yrd Mat Turns Passed 1142 | 6 1136 Spaces Moved 749 | 5 744 Core . | . . Treads . | . . Legs 21 | 5 16 Wheels 728 | . 728 Hover . | . . Flight . | . . Fastest Speed 105 | 120 105 Average Speed 110 | 120 110 Slowest Speed 140 | 120 140 Overloaded Moves . | . . Propulsion Burnouts . | . . Robots Hopped . | . . Cave-ins Triggered . | . . Exploration Rate (%) 45 | 2 89 Regions Visited 1 Branch Regions . Pre-discovered Areas . | . . Known Exits Taken . | . . Unknown Exits Taken 1 | 1 . Scrap Searched . | . . Spaces Dug . | . . Terrain Destroyed . | . . Melee . | . . Projectile . | . . AOE . | . . Terrain Rammed . | . . Walls Destroyed . | . . Machines Disabled . | . . Actions | -11 -10 --------- Run | Yrd Mat Total 936 | 5 931 Wait 80 | 1 79 Move 748 | 4 744 Hop . | . . Pick Up 21 | . 21 Fast Attach . | . . Attach 10 | . 10 Detach . | . . Swap 2 | . 2 Drop 7 | . 7 Fire 67 | . 67 Melee . | . . Ram 1 | . 1 Kick . | . . Crush . | . . Escape Stasis . | . . Rewire . | . . Trap . | . . Miscellaneous . | . . Route ------- -11/Scrapyard -10/Materials (discovered 4 exits: [*Mat x3] / [*Min]) History --------- Turn | Location | Event 2 | -11/Scrapyard | Discovered new exit (range 3) 7 | -11/Scrapyard | Entered Materials 74 | -10/Materials | Discovered new exit (range 9) 220 | -10/Materials | Discovered new exit (range 16) 282 | -10/Materials | Core integrity fell below 50% 324 | -10/Materials | Build established: Mutant 461 | -10/Materials | Discovered new exit (range 5) 613 | -10/Materials | Discovered new exit (range 13) 1000 | -10/Materials | Derelicts attacked the area 1127 | -10/Materials | Core integrity fell below 20% 1143 | -10/Materials | Destroyed by S-10 Pest with Light Assault Rifle Last Messages --------------- within the floor. 00980_ Sml. Laser severed. 00981_ Acquired Sml. Laser. 00982_ Dropped Sml. Laser. 00985_ U-05 Engineer lays Concrete. 00990_ Acquired Weapon Shielding. 01000_ ALERT: Derelict incursion detected, dispatching patrols to target area. 01016_ System corrupted: FCS attempts to trigger Sml. Laser. 01016_ System corrupted: Sml. Laser misfires. 01064_ System corrupted: FCS attempts to trigger Sml. Laser. 01064_ System corrupted: Sml. Laser misfires. 01094_ Acquired 10 matter. 01110_ Imp. Heat Sink destroyed. 01110_ Wheel destroyed. 01117_ System corrupted: Sml. Laser failed to cycle. 01124_ Wheel destroyed. 01143_ K-01 Serf collects debris. Map ----- +----------------------------------------------------+ | # #????????????????# ## """"""""" ## ###+###### | | # #????????????????# ## """ """ ## # | | # #????????????????# ## ## # ! | | | # ################## ## !## # !! | | ##+########### # ! | | % # | | ###################%% # " "" | | #??????????# # "R"" | | [!!#??????????# ############## # """" | | " !!##########?## ##??########### ########## | | " !!## = #??# %%#???# ## #????????? | | " ## #??# #???# " ## #????????? | | ## #??# #???# T """ ## #####????? | | #########% #### ##??# " """ # #????? | | # #""" #??# """ + < #????? | | + """ #" #??# """ # #????? | | # """"" #"! % #??# """ #########????? | | ####+##+# """"" #"" <% #??# #????????????? | | ## # """"" #"! % #??# #????????????? | | # # """ #" %* #??##########??##????????? | | # """ # #""" #?????????????? #????????? | | # """ ############ ##????????????? #????????? | | #[ """ #??# """ k!= ##????????????? #????????? | | # #??# """ *%! "#???????????? #????????? | | ######+#??# "" +||k;#######?????? #????????? | | #????# #??# ;%%!; @ s !#?????? #????????? | | #??### #### % ; ! ; """ #????? ?????????? | | #??# #######+#; *%; """ #????? ??????????? | | #??# ; """ s#????#/#???????????? | | ##### ; !##### #???????????? | | ; !%s*! #???????????? | | #######+###;;;##+#####% #???????????? | | ###########???# ##### #???# #???????????? | | ??????????????# #???# ##### #???????????? | | ??????????????# "" ##### #???????????? | | ??????????????# "Y + ######## #???????????? | | ??????????????# "" ### # """ #? #???????????? | | ??????????????# #?# # """ #? #???????????? | | ??????????????########?# + """ #? #???????????? | | ???????????????????????# # #? ! ???????????? | | ???????????????????????# # #?!% ??????????? | | ???????????????????????# # =#? ! ??????????? | | ???????????????????????# # =!#? ##?????????? | | ???????????????????????# #######??###??????????? | | ????????????????######## #?????????????????????? | | ????????????????# + #?????????????????????? | | ????????????????# # #?????????????????????? | | ????????????????# # #?????????????????????? | | ????????????????# ?# #?????????????????????? | | ????????????????# ?#####?????????????????????? | +----------------------------------------------------+ Best States ------------- Heat Dissipation 39 Energy Generation 10 Energy Capacity 250 Matter Stores 300 Matter Capacity 300 Sight Range 16 Terrain Scan Density 10 Evasion (%) 50 Item Schematics ----------------- None Robot Schematics ------------------ None Fabricated ------------ Nothing Alien Tech Used ----------------- None Achievements -------------- None Challenges ------------ None Game ------ Seed NullCompactArchive Manual? 0 Play Time 00:35:47 Cumulative 64.6 hours Start 2024.07.14 @ 16:47:43 End 2024.07.15 @ 15:43:12 Sessions 2 Manual Loads 0 Difficulty Rogue Special Mode None Game No. 110 Rogue 110 Adventurer 0 Explorer 0 Win Type - Total 0 Types 0/0/0/0/0/0/0/0/0 Lore% 47 Gallery% 56 Achievement% 40 Wizard Run 0 Options --------- Layout 1 ASCII 0 Keyboard 0 Movement Mouse Keybinds 0 Fullscreen 2 Font 20/SmallcapsGlow Map View 54x42 Zoom Use 0% Tactical HUD 1 Map Filters NONE Filters NONE Steam 1 RUN: 78afb2c5-2adc-46f1-8cc4-791c4b99da07